bitfinex/quotes_SOLUSD_20220216
["timestamp","ask_amount","ask_price","bid_price","bid_amount"]
[1645044360566,23.32569569,103.04,102.95,0.17903876]
[1645044360765,3.7917299,103.03,102.95,48.85289105]
[1645044361163,28.4079299,103.03,102.95,48.85289105]
[1645044361762,29.77390155,103.03,102.95,0.17903876]
[1645044361962,2.54112404,103.02,102.95,0.17903876]
[1645044362363,3.90709569,103.02,102.95,0.17903876]
[1645044362565,1.36597165,103.02,102.95,0.17903876]
[1645044362766,25.98217165,103.03,102.95,0.17903876]
[1645044363272,24.6162,103.03,102.95,0.42903876]
[1645044363664,24.6162,103.03,102.95,34.95542572]
[1645044363864,24.6162,103.03,102.95,55.52042572]
[1645044364266,24.6162,103.03,102.96,96.71]
[1645044365173,24.6162,103.03,102.95,40.95542572]
[1645044365369,24.6162,103.03,102.96,96.71]
[1645044365872,24.6162,103.03,102.96,111.2725]
[1645044368273,1.36597165,103.04,102.96,169.5825]
[1645044368477,1.36597165,103.06,102.97,2.0447468]
[1645044368674,26.00777165,103.07,103.0,96.71]
[1645044368874,26.00777165,103.07,103.0,155.02]
[1645044368875,1.36597165,103.07,103.0,155.02]
[1645044369275,1.36597165,103.08,103.02,96.71]
[1645044369478,1.36597165,103.07,103.02,96.71]
[1645044369676,1.36597165,103.08,103.03,14.5538]
[1645044370278,1.36597165,103.09,103.03,14.5538]
[1645044370977,1.36597165,103.09,103.02,37.2044]
[1645044371173,1.36597165,103.08,103.02,37.2044]
[1645044373277,3.99370542,103.07,103.02,14.5555]
[1645044373482,3.99370542,103.07,102.98,18.812]
[1645044373483,3.99370542,103.07,102.98,24.3367]
[1645044373879,1.36597165,103.06,102.98,24.3367]
[1645044374080,1.36597165,103.06,102.98,82.6467]
[1645044374279,1.36597165,103.07,102.98,82.6467]
[1645044374480,1.36597165,103.07,102.98,97.2072]
[1645044374881,13.70872768,103.07,102.99,37.6588524]
[1645044375081,13.70872768,103.07,102.99,37.9088524]
[1645044375282,1.36597165,103.07,102.99,37.9088524]
[1645044376083,1.36597165,103.07,102.99,134.6188524]
[1645044376482,49.22917165,103.08,102.99,207.4871524]
[1645044378287,47.8632,103.08,102.99,207.4871524]
[1645044378695,47.8632,103.08,102.99,223.49171658]
[1645044378887,1.36597165,103.09,102.99,223.49171658]
[1645044379087,1.36597165,103.09,103.01,155.02]
[1645044379287,23.5347,103.1,103.04,35.97464423]
[1645044379288,24.90067165,103.1,103.04,35.97464423]
[1645044379490,1.36597165,103.1,103.04,190.99464423]
[1645044379696,1.36597165,103.11,103.04,190.99464423]
[1645044379891,26.24397165,103.12,103.04,190.99464423]
[1645044380291,26.24397165,103.12,103.04,205.54604423]
[1645044381096,24.878,103.12,103.04,205.54604423]
[1645044381496,1.36597165,103.13,103.04,205.54604423]
[1645044381696,1.36597165,103.13,103.04,228.17124423]
[1645044383296,24.90067165,103.14,103.04,228.17124423]
[1645044383497,24.90067165,103.14,103.04,242.13124423]
[1645044384097,23.5347,103.14,103.04,242.13124423]
[1645044384297,23.5347,103.14,103.04,246.98024423]
[1645044385516,23.5347,103.14,103.04,242.13124423]
[1645044387018,27.91850685,103.14,103.04,242.13124423]
[1645044387620,27.91850685,103.14,103.04,87.11124423]
[1645044387819,2.54112404,103.13,103.04,58.59984423]
[1645044388021,3.90709569,103.13,103.04,58.59984423]
[1645044388618,16.50112404,103.12,103.04,35.97464423]
[1645044388823,22.71609569,103.12,103.04,35.97464423]
[1645044389021,17.86709569,103.12,103.04,35.97464423]
[1645044389318,17.86709569,103.12,103.01,23.8441]
[1645044389519,25.59242404,103.11,102.99,10.1318288]
[1645044389722,13.96,103.1,102.98,5.724]
[1645044390020,6.21797165,103.09,102.98,15.86099512]
[1645044390219,13.96,103.08,102.98,170.88099512]
[1645044390421,13.96,103.08,103.0,96.71]
[1645044390721,13.96,103.08,102.99,112.95192318]
[1645044390920,13.96,103.08,103.0,0.25]
[1645044392724,28.5186,103.08,103.0,0.25]
[1645044396832,28.5186,103.08,102.98,47.39789512]
[1645044397034,25.99992404,103.07,102.95,14.13903876]
[1645044397234,14.5631,103.05,102.95,0.17903876]
[1645044397434,58.20187165,103.05,102.95,0.17903876]
[1645044397633,2.54112404,103.04,102.95,0.17903876]
[1645044397834,4.38380685,103.03,102.95,0.17903876]
[1645044398036,34.8949785,103.03,102.95,0.17903876]
[1645044398235,2.54112404,103.02,102.95,0.17903876]
[1645044398634,34.8949785,103.03,102.95,0.17903876]
[1645044398836,14.5689,103.02,102.95,0.17903876]
[1645044399036,20.78987165,103.02,102.95,0.17903876]
[1645044399245,26.0219,103.02,102.95,0.17903876]
[1645044403139,28.56302404,103.02,102.95,0.17903876]
[1645044403336,42.52302404,103.02,102.95,0.17903876]
[1645044404148,43.88899569,103.02,102.95,0.17903876]
[1645044404741,33.3839,103.02,102.95,0.17903876]
[1645044405641,28.5289,103.02,102.95,0.17903876]
[1645044407843,33.3839,103.02,102.95,0.42903876]
[1645044408843,28.5289,103.02,102.95,0.42903876]
[1645044409043,52.00250685,103.03,102.95,0.42903876]
[1645044410544,71.42220685,103.03,102.95,0.42903876]
[1645044410745,73.96333089,103.03,102.95,0.42903876]
[1645044410946,71.42220685,103.03,102.95,0.42903876]
[1645044411549,66.56820685,103.03,102.95,0.42903876]
[1645044412246,2.54112404,103.02,102.95,0.42903876]
[1645044412445,14.5699,103.0,102.95,0.17903876]
[1645044413346,12.06565596,102.99,102.95,0.17903876]
[1645044414148,14.5699,103.0,102.95,0.17903876]
[1645044414349,22.9537,103.01,102.95,0.42903876]
[1645044415046,38.23345147,103.01,102.95,0.42903876]
[1645044416048,22.9537,103.01,102.95,0.42903876]
[1645044417357,1.36597165,103.03,102.96,154.94]
[1645044417552,1.36597165,103.05,102.96,156.98469043]
[1645044417750,1.36597165,103.07,102.96,170.94469043]
[1645044417950,30.86187165,103.08,102.97,2.04469043]
[1645044418151,26.00887165,103.08,102.98,154.94]
[1645044418358,26.00887165,103.08,103.01,169.4955]
[1645044418575,38.51313802,103.1,103.02,141.92509538]
[1645044418576,1.36597165,103.09,103.02,141.92509538]
[1645044419150,1.36597165,103.09,103.02,45.21509538]
[1645044419552,16.37629882,103.09,103.02,45.21509538]
[1645044419752,1.36597165,103.08,103.02,45.21509538]
[1645044420352,1.36597165,103.09,103.02,45.21509538]
[1645044420553,15.92307165,103.09,103.02,45.21509538]
[1645044421158,1.36597165,103.09,103.02,45.21509538]
[1645044422254,3.90709569,103.09,102.99,24.4298]
[1645044422456,3.90709569,103.09,102.98,154.94]
[1645044422457,1.36597165,103.08,102.98,154.94]
[1645044422855,1.36597165,103.07,102.98,154.94]
[1645044423055,2.54112404,103.09,102.98,154.94]
[1645044423056,1.36597165,103.08,102.98,154.94]
[1645044423256,1.36597165,103.07,102.99,44.32980603]
[1645044423856,15.92607165,103.07,102.99,44.32980603]
[1645044426385,1.36597165,103.06,102.99,44.32980603]
[1645044426584,5.73742003,103.06,103.0,0.25]
[1645044427286,1.36597165,103.06,103.0,0.25]
[1645044427687,1.36597165,103.07,103.0,0.25]
[1645044428885,1.36597165,103.07,103.0,14.8072]
[1645044429386,1.36597165,103.07,103.0,0.25]
[1645044429884,1.36597165,103.06,103.0,0.25]
[1645044430286,1.36597165,103.07,103.0,0.25]
[1645044430686,24.60467165,103.08,103.0,0.25]
[1645044430888,1.36597165,103.07,103.0,0.25]
[1645044431387,1.36597165,103.07,103.0,169.747]
[1645044431588,1.36597165,103.08,103.0,169.747]
[1645044434192,1.36597165,103.08,103.0,73.037]
[1645044434389,18.29698261,103.08,103.0,0.25]
[1645044434790,1.36597165,103.07,103.0,0.25]
[1645044435393,18.29698261,103.08,103.0,0.25]
[1645044435890,1.36597165,103.07,103.0,0.25]
[1645044436294,1.36597165,103.07,103.0,111.5168]
[1645044436492,1.36597165,103.07,103.0,169.7468]
[1645044436692,1.36597165,103.08,103.0,169.7468]
[1645044437293,1.36597165,103.07,103.0,169.7468]
[1645044437792,1.36597165,103.07,103.0,155.19]
[1645044440299,1.36597165,103.08,103.0,169.7455]
[1645044441094,1.36597165,103.07,103.0,155.19]
[1645044442296,1.36597165,103.06,103.0,155.19]
[1645044443799,1.36597165,103.07,103.0,155.19]
[1645044445201,1.36597165,103.05,103.0,155.19]
[1645044450408,1.36597165,103.05,103.0,169.7451]
[1645044451209,1.36597165,103.05,103.0,96.96]
[1645044451611,1.36597165,103.04,103.0,96.96]
[1645044452944,1.36597165,103.05,103.0,155.19]
[1645044453544,1.36597165,103.05,103.0,0.25]
[1645044453745,1.36597165,103.04,103.0,0.25]
[1645044453945,1.36597165,103.03,103.0,0.25]
[1645044456358,1.36597165,103.04,103.0,0.25]
[1645044459452,1.36597165,103.04,102.98,23.2723]
[1645044459655,1.36597165,103.04,102.95,0.17903876]
[1645044459853,1.36597165,103.03,102.95,0.17903876]
[1645044460053,1.36597165,103.01,102.95,0.17903876]
[1645044460552,19.25296411,103.04,102.95,44.05476219]
[1645044460553,1.36597165,103.0,102.95,44.05476219]
[1645044460752,1.36597165,103.01,102.95,44.05476219]
[1645044461157,1.36597165,103.01,102.96,0.25]
[1645044462358,15.93447165,103.01,102.96,0.25]
[1645044462958,14.5685,103.01,102.96,0.25]
[1645044463158,29.68330978,103.02,102.96,0.25]
[1645044463358,34.53730978,103.02,102.96,0.25]
[1645044463558,29.68330978,103.02,102.96,0.25]
[1645044464259,44.25030978,103.02,102.96,0.25]
[1645044464760,26.28227165,103.02,102.96,0.25]
[1645044464960,1.36597165,103.02,102.96,0.25]
[1645044465158,24.83907165,103.03,102.96,0.25]
[1645044465761,41.39259075,103.03,102.96,0.25]
[1645044467960,24.83907165,103.03,102.96,0.25]
[1645044468461,23.4731,103.03,102.96,0.25]
[1645044468861,39.10564118,103.03,102.96,0.25]
[1645044469662,29.26915971,103.03,102.96,0.25]
[1645044470861,1.36597165,103.02,102.96,0.25]
[1645044473067,1.36597165,103.02,102.95,0.17903876]
[1645044473266,1.36597165,103.0,102.95,0.17903876]
[1645044474067,2.94169537,102.99,102.95,0.17903876]
[1645044475866,17.51299537,102.99,102.95,0.17903876]
[1645044476465,18.87896702,102.99,102.95,0.17903876]
[1645044476770,17.51299537,102.99,102.95,0.17903876]
[1645044478365,18.87896702,102.99,102.95,0.17903876]
[1645044478766,17.51299537,102.99,102.95,0.17903876]
[1645044478967,15.93567165,103.0,102.95,0.17903876]
[1645044479167,1.36597165,103.0,102.95,0.17903876]
[1645044479370,25.43597165,103.01,102.95,0.17903876]
[1645044479571,24.07,103.01,102.95,0.42903876]
[1645044480072,16.41680055,103.0,102.95,0.42903876]
[1645044480670,16.41680055,103.0,102.95,0.17903876]
[1645044481268,17.7827722,103.0,102.95,0.17903876]
[1645044481669,16.41680055,103.0,102.95,0.42903876]
[1645044482773,15.93427165,103.01,102.95,0.42903876]
[1645044482974,1.36597165,103.01,102.95,0.42903876]
[1645044483572,1.36597165,103.02,102.95,0.17903876]
[1645044483772,1.36597165,103.01,102.95,0.42903876]
[1645044484577,1.36597165,103.0,102.95,0.17903876]
[1645044484776,31.56838004,103.0,102.95,0.17903876]
[1645044486577,31.56838004,103.0,102.94,0.12754564]
[1645044486779,84.0,102.97,102.92,0.67942036]
[1645044486982,15.32597165,102.99,102.9,0.51018256]
[1645044486983,85.0,102.95,102.9,0.51018256]
[1645044487181,1.36597165,102.94,102.9,0.5362356]
[1645044487479,13.96,102.93,102.9,0.31446169]
[1645044487678,15.32597165,102.93,102.9,0.31446169]
[1645044487880,3.03219997,102.92,102.9,0.31446169]
[1645044488080,1.36597165,102.95,102.9,0.31446169]
[1645044488282,1.36597165,102.97,102.9,97.02446169]
[1645044488681,1.36597165,102.97,102.91,37.57757799]
[1645044488981,12.81188788,102.98,102.91,37.57757799]
[1645044489184,12.81188788,102.98,102.9,24.60506169]
[1645044489383,1.36597165,102.97,102.9,24.60506169]
[1645044490183,1.36597165,102.97,102.9,59.45424901]
[1645044491688,3.38032385,102.96,102.9,59.45424901]
[1645044491891,3.38032385,102.96,102.9,35.16364901]
[1645044492090,1.36597165,102.96,102.9,35.16364901]
[1645044492291,31.14157165,102.97,102.9,35.16364901]
[1645044492590,26.28457165,102.97,102.9,35.16364901]
[1645044492788,26.28457165,102.97,102.9,0.31446169]
[1645044492991,15.32597165,102.96,102.9,0.31446169]
[1645044493608,15.32597165,102.96,102.89,0.25]
[1645044493810,16.66001052,102.95,102.89,0.25]
[1645044494012,25.76301052,102.95,102.88,78.90018154]
[1645044494210,46.56398217,102.95,102.88,14.29672286]
[1645044494410,44.24710621,102.95,102.88,14.29672286]
[1645044494613,1.36597165,102.94,102.88,14.29672286]
[1645044494811,13.96,102.93,102.88,14.29672286]
[1645044495010,16.50112404,102.93,102.88,14.29672286]
[1645044495212,13.96,102.93,102.88,14.29672286]
[1645044496913,13.96,102.93,102.89,37.52234088]
[1645044497117,13.96,102.93,102.88,14.29672286]
[1645044499014,16.98322956,102.93,102.88,14.29672286]
[1645044499414,31.56302956,102.93,102.88,14.29672286]
[1645044500317,28.5398,102.93,102.88,14.29672286]
[1645044500718,13.96,102.93,102.88,14.29672286]
[1645044506024,28.5396,102.93,102.88,14.29672286]
[1645044508028,0.75087283,102.92,102.88,14.29672286]
[1645044508228,14.71087283,102.92,102.88,14.29672286]
[1645044510230,13.96,102.92,102.88,14.29672286]
[1645044510630,13.96,102.92,102.89,0.25]
[1645044511137,13.96,102.92,102.88,14.29672286]
[1645044511332,13.96,102.92,102.89,0.25]
[1645044511529,13.96,102.92,102.88,14.29672286]
[1645044511728,14.75246946,102.92,102.88,14.29672286]
[1645044512133,13.96,102.92,102.88,14.29672286]
[1645044519140,15.32597165,102.92,102.88,14.29672286]
[1645044520442,13.96,102.92,102.88,14.29672286]
[1645044520643,16.23010102,102.92,102.88,14.29672286]
[1645044520842,30.81140102,102.92,102.88,14.29672286]
[1645044521043,29.44542937,102.92,102.88,14.29672286]
[1645044521246,30.81140102,102.92,102.88,14.29672286]
[1645044521443,16.23010102,102.92,102.88,14.29672286]
[1645044521644,14.86412937,102.92,102.88,14.29672286]
[1645044522042,15.32597165,102.92,102.88,14.29672286]
[1645044522444,15.32597165,102.92,102.89,0.25]
[1645044522445,1.36597165,102.92,102.89,0.25]
[1645044522749,1.36597165,102.93,102.89,0.25]
[1645044523149,1.36597165,102.93,102.89,41.13867912]
[1645044523947,1.36597165,102.94,102.89,41.13867912]
[1645044531074,1.36597165,102.95,102.89,41.13867912]
[1645044532978,1.36597165,102.95,102.89,137.84867912]
[1645044533180,1.36597165,102.96,102.89,196.07867912]
[1645044533377,1.36597165,102.96,102.9,102.71]
[1645044533579,1.36597165,102.96,102.91,38.26348674]
[1645044534379,1.36597165,102.97,102.91,38.26348674]
[1645044535478,1.36597165,102.97,102.91,134.97348674]
[1645044535878,1.36597165,102.98,102.91,207.77288674]
[1645044536280,1.36597165,102.99,102.91,209.81700226]
[1645044537077,1.36597165,102.99,102.93,154.94]
[1645044537277,1.36597165,102.99,102.94,142.2819697]
[1645044537479,1.36597165,103.0,102.94,200.5119697]
[1645044537880,1.36597165,103.0,102.94,103.8019697]
[1645044538979,1.36597165,103.01,102.94,60.1371697]
[1645044539281,1.36597165,103.01,102.94,45.5719697]
[1645044539679,1.36597165,103.0,102.94,45.5719697]
[1645044540682,1.36597165,103.0,102.94,142.2819697]
[1645044540880,1.36597165,103.01,102.94,200.5119697]
[1645044541881,1.36597165,103.01,102.94,215.0773697]
[1645044542483,2.59815049,103.01,102.94,45.5719697]
[1645044542683,1.36597165,103.0,102.94,45.5719697]
[1645044543686,1.36597165,103.0,102.94,142.2819697]
[1645044544082,1.36597165,103.01,102.94,142.2819697]
[1645044544883,1.36597165,103.01,102.94,167.2446697]
[1645044545688,4.7777828,103.01,102.94,70.5346697]
[1645044545885,19.3463828,103.01,102.94,24.9627]
[1645044546091,1.36597165,103.0,102.94,24.9627]
[1645044547284,1.36597165,103.0,102.95,38.46986672]
[1645044547786,15.32597165,103.01,102.95,38.46986672]
[1645044548385,15.32597165,103.01,102.96,0.25]
[1645044549586,15.32597165,103.01,102.95,38.46986672]
[1645044549784,1.36597165,103.0,102.96,0.25]
[1645044549986,1.36597165,103.01,102.96,0.25]
[1645044550187,1.36597165,103.02,102.96,0.25]
[1645044550390,1.36597165,103.03,102.96,0.25]
[1645044550588,38.08527165,103.04,102.96,0.25]
[1645044551489,3.79398785,103.03,102.96,0.25]
[1645044551687,5.1599595,103.03,102.96,0.25]
[1645044551889,1.36597165,103.02,102.96,0.25]
[1645044552091,1.36597165,103.01,102.96,0.25]
[1645044553487,12.39822388,103.01,102.94,24.9627]
[1645044553887,12.39822388,103.01,102.95,0.25]
[1645044554093,1.36597165,103.0,102.95,0.25]
[1645044554287,1.36597165,103.01,102.95,0.25]
[1645044554988,1.36597165,103.01,102.95,42.44203566]
[1645044558091,1.36597165,103.0,102.95,42.44203566]
[1645044559797,1.36597165,103.0,102.95,42.19203566]
[1645044560604,1.36597165,103.0,102.94,24.9627]
[1645044560802,1.36597165,102.99,102.91,23.898]
[1645044561125,1.36597165,102.98,102.91,48.138]
[1645044561499,12.92684813,102.98,102.91,84.06617614]
[1645044562101,1.36597165,102.98,102.92,0.25]
[1645044562699,15.32597165,102.98,102.89,10.1391626]
[1645044562902,24.02877165,102.97,102.89,23.1583]
[1645044563100,1.36597165,102.96,102.89,23.1583]
[1645044563399,37.98877165,102.97,102.89,23.1583]
[1645044563605,10.51862122,102.96,102.89,71.87441086]
[1645044563801,11.88459287,102.96,102.89,71.87441086]
[1645044564000,10.51862122,102.96,102.89,71.87441086]
[1645044564200,11.88459287,102.96,102.89,71.87441086]
[1645044564602,1.36597165,102.96,102.89,71.87441086]
[1645044565399,1.36597165,102.96,102.9,0.25]
[1645044566104,1.36597165,102.96,102.91,46.87248676]
[1645044566804,1.36597165,102.96,102.9,0.25]
[1645044567707,1.36597165,102.96,102.9,42.4204021]
[1645044568305,24.02877165,102.97,102.9,56.9914021]
[1645044568504,22.6628,102.97,102.9,56.9914021]
[1645044568905,22.6628,102.97,102.9,153.7014021]
[1645044569504,1.36597165,102.98,102.9,56.9914021]
[1645044570109,1.36597165,102.98,102.9,211.9314021]
[1645044570305,18.95765971,102.98,102.88,43.86806881]
[1645044570606,1.36597165,102.96,102.88,19.15372286]
[1645044570807,15.32597165,102.95,102.88,19.15372286]
[1645044571007,1.36597165,102.94,102.88,14.29672286]
[1645044571306,15.32597165,102.93,102.88,60.02935711]
[1645044571507,13.96,102.93,102.88,60.02935711]
[1645044572008,13.96,102.93,102.89,0.25]
[1645044577139,13.96,102.95,102.89,0.25]
[1645044577345,23.6322,102.96,102.89,0.25]
[1645044577941,23.6322,102.96,102.89,6.25]
[1645044578242,23.6322,102.96,102.9,39.38249108]
[1645044579541,52.68937165,102.97,102.9,39.38249108]
[1645044579740,36.7494,102.97,102.9,39.38249108]
[1645044581541,38.11537165,102.97,102.9,39.38249108]
[1645044581741,36.7494,102.97,102.9,39.38249108]
[1645044583043,36.7494,102.97,102.91,0.25]
[1645044583642,13.96,102.97,102.91,0.25]
[1645044583842,1.36597165,102.98,102.91,0.25]
[1645044584250,13.96,102.99,102.92,141.95530872]
[1645044584251,1.36597165,102.99,102.92,141.95530872]
[1645044584650,1.36597165,102.99,102.92,45.24530872]
[1645044585454,15.32597165,103.0,102.92,45.24530872]
[1645044585851,15.32597165,103.0,102.92,59.81270872]
[1645044586450,1.36597165,102.99,102.92,59.81270872]
[1645044589456,1.36597165,102.99,102.93,96.71]
[1645044589756,13.96,103.0,102.93,96.71]
[1645044589757,15.32597165,103.0,102.93,14.5672]
[1645044589958,1.36597165,102.99,102.93,14.5672]
[1645044590557,1.36597165,102.99,102.94,47.38403834]
[1645044591957,15.32597165,103.0,102.94,61.95053834]
[1645044592660,15.32597165,103.0,102.94,216.89053834]
[1645044593063,13.96,103.0,102.94,216.89053834]
[1645044593863,13.96,103.0,102.94,120.18053834]
[1645044596068,13.96,103.0,102.94,216.89053834]
[1645044596766,13.96,103.0,102.94,120.18053834]
[1645044596968,13.96,103.0,102.94,216.89053834]
[1645044597167,13.96,103.0,102.94,120.18053834]
[1645044598676,24.43666351,103.0,102.92,4.855]
[1645044598873,1.36597165,102.99,102.92,4.855]
[1645044599072,22.72309569,102.99,102.89,83.2026]
[1645044599277,45.09197165,102.99,102.89,83.2026]
[1645044599476,1.36597165,102.98,102.89,83.2026]
[1645044599675,1.36597165,102.98,102.9,53.81135124]
[1645044599873,59.66427165,102.99,102.9,53.81135124]
[1645044600275,20.18197165,102.99,102.92,96.71]
[1645044600480,1.36597165,103.0,102.95,58.23]
[1645044600679,1.36597165,103.0,102.96,154.94]
[1645044600879,1.36597165,103.04,102.96,169.5024]
[1645044601076,1.36597165,103.06,102.98,154.94]
[1645044601381,93.97768592,103.07,102.99,189.50419952]
[1645044601574,89.12368592,103.07,102.99,191.55585877]
[1645044601977,1.36597165,103.06,102.99,191.55585877]
[1645044602176,2.339227,103.06,102.99,94.84585877]
[1645044602391,2.339227,103.06,102.99,72.7873]
[1645044602592,2.339227,103.06,102.99,14.5573]
[1645044602792,2.339227,103.06,102.99,37.2811]
[1645044603292,0.97325535,103.06,102.99,80.83853594]
[1645044603492,1.36597165,103.07,102.99,177.54853594]
[1645044603898,1.36597165,103.07,102.99,235.77853594]
[1645044604294,1.36597165,103.07,102.99,251.79019519]
[1645044604495,1.36597165,103.08,102.99,251.79019519]
[1645044604695,1.36597165,103.08,102.99,256.64219519]
[1645044604896,1.36597165,103.08,103.0,0.25]
[1645044605095,1.36597165,103.08,103.04,43.57731928]
[1645044605294,47.7055,103.1,103.04,43.57731928]
[1645044605295,1.36597165,103.09,103.04,43.57731928]
[1645044605895,1.36597165,103.09,103.03,80.8294]
[1645044606294,49.07147165,103.1,103.03,37.153]
[1645044606894,4.23488302,103.09,103.03,37.153]
[1645044607297,4.23488302,103.09,103.03,79.16577654]
[1645044607497,49.07147165,103.1,103.03,137.39577654]
[1645044607697,1.36597165,103.11,103.06,96.71]
[1645044608098,1.36597165,103.13,103.06,96.71]
[1645044608298,1.36597165,103.14,103.07,45.90559099]
[1645044608701,1.36597165,103.14,103.07,104.13559099]
[1645044608897,1.36597165,103.14,103.08,96.71]
[1645044609100,49.65797165,103.15,103.07,45.90559099]
[1645044609301,48.292,103.15,103.02,28.1152]
[1645044609500,8.75609569,103.14,103.03,37.9079]
[1645044609699,8.75609569,103.14,103.03,23.9479]
[1645044609898,2.54112404,103.13,103.03,23.9479]
[1645044610100,41.60752404,103.13,103.03,135.2107]
[1645044610404,12.51898806,103.12,103.03,13.96]
[1645044610602,21.27508375,103.12,103.0,23.4013]
[1645044610801,26.64722404,103.11,103.0,0.25]
[1645044611006,15.32597165,103.1,103.0,0.25]
[1645044611203,14.5602,103.08,103.0,0.25]
[1645044611405,24.1061,103.07,103.0,0.25]
[1645044612313,24.1061,103.07,103.0,14.5578]
[1645044612504,24.1061,103.07,103.01,46.91153352]
[1645044613307,24.1061,103.07,102.96,48.5308]
[1645044613506,2.54112404,103.06,102.96,24.6869]
[1645044613719,7.39412404,103.06,102.96,24.6869]
[1645044614118,24.003,103.05,102.96,24.6869]
[1645044614313,13.32830119,103.04,102.93,38.1453]
[1645044614513,27.89280119,103.04,102.93,47.0335]
[1645044614713,27.89280119,103.04,102.93,105.2635]
[1645044614912,27.89280119,103.04,102.93,119.2235]
[1645044615112,23.2949,103.03,102.93,60.9935]
[1645044615314,23.2949,103.03,102.94,141.67731397]
[1645044615512,23.2949,103.03,102.94,199.90731397]
[1645044615712,23.2949,103.03,102.94,117.76281397]
[1645044615913,1.49793889,103.02,102.94,59.53281397]
[1645044616114,1.49793889,103.02,102.95,0.25]
[1645044616717,39.79602404,103.03,102.95,0.25]
[1645044617114,37.2549,103.03,102.95,0.25]
[1645044618713,51.8207,103.03,102.95,0.25]
[1645044620014,51.8207,103.03,102.95,14.8149]
[1645044620215,37.2549,103.03,102.96,48.42768793]
[1645044620717,23.2949,103.03,102.96,48.42768793]
[1645044621143,24.8971,103.04,102.96,217.93108793]
[1645044621320,24.8971,103.04,102.97,160.94]
[1645044621519,24.8971,103.04,102.98,46.40338972]
[1645044621719,47.9075,103.07,102.98,104.63338972]
[1645044621921,47.9075,103.07,102.98,128.80948972]
[1645044622823,62.4678,103.07,102.98,70.57948972]
[1645044623519,65.5744312,103.07,102.98,46.40338972]
[1645044623721,6.21897165,103.06,102.98,46.40338972]
[1645044623921,14.5644,103.04,102.98,46.40338972]
[1645044624124,28.5244,103.04,102.98,46.40338972]
[1645044626821,28.5244,103.04,102.99,0.25]
[1645044627022,28.5244,103.04,102.98,46.40338972]
[1645044628230,4.853,103.03,102.93,14.5669]
[1645044628428,14.5703,103.0,102.9,10.13923335]
[1645044628668,14.5703,103.0,102.88,61.50672286]
[1645044628669,35.2653,103.0,102.88,61.50672286]
[1645044628867,23.8244,102.99,102.88,61.50672286]
[1645044629272,23.8244,102.99,102.89,37.4843336]
[1645044629868,38.3969,102.99,102.89,52.0560336]
[1645044630068,38.3969,102.99,102.91,38.62630261]
[1645044630867,10.94757726,102.98,102.91,38.62630261]
[1645044631067,14.5755,102.97,102.91,38.62630261]
[1645044632268,28.5355,102.97,102.91,38.62630261]
[1645044632667,28.5355,102.97,102.92,0.25]
[1645044632868,14.5755,102.97,102.92,0.25]
[1645044633468,14.5727,102.98,102.92,0.25]
[1645044633670,14.5727,102.98,102.91,38.62630261]
[1645044634071,12.3235313,102.97,102.91,38.62630261]
[1645044634268,21.97082404,102.98,102.91,38.62630261]
[1645044634469,19.4297,102.98,102.91,38.62630261]
[1645044634671,33.3897,102.98,102.91,38.62630261]
[1645044634971,33.3897,102.98,102.92,0.25]
[1645044635172,13.96,102.98,102.92,0.25]
[1645044637871,23.8244,102.99,102.92,14.8192]
[1645044638873,38.3956,102.99,102.92,0.25]
[1645044641375,23.8244,102.99,102.92,0.25]
[1645044642680,23.8244,102.99,102.92,14.8191]
[1645044644083,53.35085252,102.99,102.9,6.0]
[1645044644384,2.54112404,102.98,102.91,0.25]
[1645044644581,16.50112404,102.98,102.91,0.25]
[1645044644980,16.50112404,102.98,102.9,6.0]
[1645044645186,13.96,102.98,102.9,6.0]
[1645044646080,4.857,102.97,102.9,45.2303275]
[1645044646382,19.4319,102.97,102.91,0.25]
[1645044647582,14.5749,102.97,102.91,0.25]
[1645044650891,13.96,102.98,102.91,0.25]
[1645044651090,23.8244,102.99,102.91,0.25]
[1645044651889,23.8244,102.99,102.91,14.8204]
[1645044652890,4.856,103.0,102.91,111.5304]
[1645044653095,38.56177165,103.01,102.91,169.7604]
[1645044653292,22.6275,103.01,102.92,110.67]
[1645044653493,22.6275,103.01,102.93,14.5668]
[1645044653891,22.6275,103.01,102.94,36.06313345]
[1645044654918,23.99347165,103.01,102.94,36.06313345]